fUST/lending_fUST_20240917
["ID","MTS","AMOUNT","RATE_DAILY","PERIOD"]
[338344160,1726529440843,-300.0,0.00019967,2]
[338344161,1726529440853,-58672.6078105,0.00019968,3]
[338344162,1726529440864,-40523.91498837,0.00019968,3]
[338344203,1726529443394,-7961.08060613,0.00019968,3]
[338344205,1726529443404,-647.56021352,0.00019968,5]
[338344206,1726529443414,-151.0,0.00019968,2]
[338344207,1726529443424,-151.0,0.00019968,2]
[338344208,1726529443434,-151.0,0.00019968,2]
[338344209,1726529443444,-1674.365166,0.00019968,2]
[338344210,1726529443454,-151.0,0.00019968,2]
[338344211,1726529443463,-1674.365166,0.00019968,2]
[338344212,1726529443472,-151.0,0.00019968,2]
[338344213,1726529443482,-331.640486,0.00019968,2]
[338344214,1726529443492,-331.640486,0.00019968,2]
[338344215,1726529443502,-799.113024,0.00019968,2]
[338344216,1726529443511,-799.113024,0.00019968,2]
[338344217,1726529443522,-278.714402,0.00019968,2]
[338344218,1726529443532,-278.714402,0.00019968,2]
[338344219,1726529443542,-151.0,0.00019968,2]
[338344220,1726529443552,-151.0,0.00019968,2]
[338344221,1726529443562,-151.0,0.00019968,2]
[338344222,1726529443572,-263.271051,0.00019968,2]
[338344223,1726529443582,-263.271051,0.00019968,2]
[338344224,1726529443592,-151.0,0.00019968,2]
[338344225,1726529443602,-1000.490996,0.00019968,2]
[338344226,1726529443612,-1000.490996,0.00019968,2]
[338344227,1726529443622,-151.0,0.00019968,2]
[338344228,1726529443632,-151.0,0.00019968,2]
[338344229,1726529443641,-151.0,0.00019968,2]
[338344230,1726529443650,-160.544922,0.00019968,2]
[338344231,1726529443660,-151.0,0.00019968,2]
[338344232,1726529443669,-151.0,0.00019968,2]
[338344233,1726529443679,-160.544922,0.00019968,2]
[338344234,1726529443691,-151.0,0.00019968,2]
[338344235,1726529443701,-1750.239693,0.00019968,2]
[338344236,1726529443711,-1750.239693,0.00019968,2]
[338344237,1726529443721,-151.0,0.00019968,2]
[338344238,1726529443731,-181.821915,0.00019968,2]
[338344239,1726529443741,-151.0,0.00019968,2]
[338344240,1726529443751,-400.513218,0.00019968,2]
[338344241,1726529443760,-181.821915,0.00019968,2]
[338344242,1726529443770,-400.513218,0.00019968,2]
[338344243,1726529443779,-151.0,0.00019968,2]
[338344244,1726529443789,-3166.334071,0.00019968,2]
[338344245,1726529443799,-3166.334071,0.00019968,2]
[338344246,1726529443808,-1795.011257,0.00019968,2]
[338344247,1726529443818,-1795.011257,0.00019968,2]
[338344248,1726529443828,-151.0,0.00019968,2]
[338344249,1726529443837,-569.929821,0.00019968,2]
[338344250,1726529443847,-569.929821,0.00019968,2]
[338344251,1726529443857,-219.09146,0.00019968,2]
[338344252,1726529443866,-219.09146,0.00019968,2]
[338344253,1726529443876,-151.0,0.00019968,2]
[338344254,1726529443886,-151.0,0.00019968,2]
[338344255,1726529443895,-151.0,0.00019968,2]
[338344256,1726529443905,-284.956706,0.00019968,2]
[338344257,1726529443914,-284.956706,0.00019968,2]
[338344258,1726529443924,-737.089948,0.00019968,2]
[338344259,1726529443933,-737.089948,0.00019968,2]
[338344260,1726529443943,-32.43539325,0.00019968,2]
[338344360,1726529458576,255.12155,0.00013699,2]
[338344366,1726530023040,252.24811,0.00013699,2]
[338344368,1726530039350,-186.593077,0.00017911,2]
[338344370,1726530420013,-184.283317,0.00018989,2]
[338344371,1726530441100,-157.992851,0.00019178,2]
[338344372,1726530441126,-161.661356,0.00019178,2]
[338344373,1726530441148,-501.989442,0.00019628,2]
[338344374,1726530528242,249.432781,0.00013699,2]
[338344397,1726530632343,-179.0,0.0001973,2]
[338344399,1726530632353,-500.0,0.0001979,2]
[338344401,1726530632362,-25.49414432,0.00019858,2]
[338344504,1726530640587,-974.50585568,0.00019858,2]
[338344505,1726530640597,-2180.63769323,0.00019865,2]
[338344506,1726530640607,-153.0,0.000199,2]
[338344507,1726530640616,-153.0,0.000199,2]
[338344509,1726530640626,-153.0,0.000199,2]
[338344512,1726530640638,-208.6350023,0.000199,2]
[338344514,1726530640650,-153.0,0.000199,2]
[338344516,1726530640659,-208.6350023,0.000199,2]
[338344518,1726530640668,-153.0,0.000199,2]
[338344520,1726530640678,-153.0,0.000199,2]
[338344522,1726530640687,-153.0,0.000199,2]
[338344524,1726530640697,-153.0,0.000199,2]
[338344526,1726530640707,-205.2909983,0.000199,2]
[338344527,1726530640717,-153.0,0.000199,2]
[338344528,1726530640726,-500.0,0.00019927,2]
[338344529,1726530640736,-633.55473051,0.00019947,2]
[338344530,1726530640746,-500.0,0.00019947,2]
[338344531,1726530640755,-58672.6078105,0.00019948,3]
[338344532,1726530640766,-46060.7458148,0.00019948,3]
[338344533,1726530640775,-58672.6078105,0.00019949,3]
[338344534,1726530640786,-46060.7458148,0.00019949,3]
[338344535,1726530640796,-500.0,0.00019957,2]
[338344536,1726530640806,-500.0,0.00019957,2]
[338344537,1726530640816,-625.20328559,0.00019957,2]
[338344538,1726530640825,-500.0,0.00019957,2]
[338344539,1726530640836,-500.0,0.00019957,2]
[338344540,1726530640846,-204.30821601,0.00019957,2]
[338344541,1726530640856,-173.5799765,0.00019957,2]
[338344542,1726530640865,-500.0,0.00019957,2]
[338344543,1726530640875,-220.73256268,0.00019957,2]
[338344544,1726530640885,-500.0,0.00019957,2]
[338344545,1726530640896,-500.0,0.00019957,2]
[338344546,1726530640905,-500.0,0.00019957,2]
[338344547,1726530640919,-500.0,0.00019957,2]
[338344548,1726530640929,-500.0,0.00019957,2]
[338344549,1726530640938,-423.86723563,0.00019957,2]
[338344550,1726530640948,-500.0,0.00019957,2]
[338344551,1726530640957,-500.0,0.00019957,2]
[338344552,1726530640967,-500.0,0.00019957,2]
[338344553,1726530640976,-650.0,0.00019957,2]
[338344554,1726530640986,-647.56021352,0.00019958,5]
[338344555,1726530640995,-157.24516602,0.00019958,2]
[338344556,1726530641005,-100262.55972418,0.00019958,3]
[338344564,1726530643406,-31228.25187877,0.00019958,3]
[338344571,1726530812106,1082.09925402,0.0001401,2]
[338344572,1726530820059,5000.0,0.0001401,2]
[338344573,1726530864116,1103.73940265,0.0001401,2]
[338344575,1726530929945,2099.93,0.0001401,2]
[338344576,1726530932797,-199.883664,0.00018962,2]
[338344577,1726531024819,236.961141,0.00013699,2]
[338344580,1726531454197,-199.883664,0.00018935,2]
[338344581,1726531588489,235.383019,0.00013699,2]
[338344582,1726531604140,-159.733787,0.00019178,2]
[338344583,1726531604161,-68.80041636,0.00019397,2]
[338344584,1726531632088,-153.2635236,0.00019397,2]
[338344585,1726531647537,-9.04047042,0.00019397,2]
[338344586,1726531647557,-231.10441038,0.00019507,2]
[338344587,1726531647578,-534.89289583,0.00019569,2]
[338344588,1726531647598,-231.10441038,0.00019589,2]
[338344589,1726531647618,-15.04043984,0.00019699,2]
[338344698,1726531840720,-216.06397054,0.00019699,2]
[338344699,1726531840729,-116.32422297,0.0001977,2]
[338344727,1726531843740,-64.67577703,0.0001977,2]
[338344728,1726531843750,-231.10441038,0.00019781,2]
[338344729,1726531843759,-500.0,0.0001979,2]
[338344730,1726531843769,-500.0,0.0001979,2]
[338344731,1726531843778,-153.0,0.000198,2]
[338344732,1726531843788,-153.0,0.000198,2]
[338344733,1726531843798,-153.0,0.000198,2]
[338344734,1726531843808,-153.0,0.000198,2]
[338344735,1726531843817,-153.0,0.000198,2]
[338344736,1726531843827,-153.0,0.000198,2]
[338344737,1726531843837,-218.0,0.00019857,2]
[338344738,1726531843847,-1000.0,0.00019858,2]
[338344739,1726531843856,-1962.57392388,0.00019858,2]
[338344740,1726531843866,-231.10441038,0.00019863,2]
[338344741,1726531843876,-153.0,0.000199,2]
[338344742,1726531843886,-231.10441035,0.00019918,2]
[338344743,1726531843897,-199.883664,0.00019922,2]
[338344744,1726531844107,-500.0,0.00019927,2]
[338344745,1726531844130,-500.0,0.00019927,2]
[338344746,1726531844140,-751.63401011,0.00019938,3]
[338344747,1726531844192,-25.39268926,0.00019938,3]
[338344757,1726532324844,-239.565621,0.00018749,2]
[338344759,1726532436240,-500.0,0.00018905,2]
[338344761,1726532457251,233.803982,0.00013699,2]
[338344762,1726532490456,185.8597897,0.00014,2]
[338344763,1726532580992,-200.0,0.00019,2]
[338344764,1726532615346,-199.8836646,0.00018746,2]
[338344768,1726532838143,-230.93541126,0.00019111,2]
[338344769,1726532854097,-1236.30484962,0.00019111,2]
[338344783,1726532990784,232.202962,0.00013699,2]
[338344866,1726533042665,-674.9827374,0.00019011,2]
[338344867,1726533042675,-883.34761558,0.00019111,2]
[338344868,1726533042685,-163.5779344,0.00019178,2]
[338344869,1726533042694,-1264.962133,0.00019178,2]
[338344870,1726533042704,-161.661356,0.00019178,2]
[338344871,1726533042713,-160.5,0.00019348,2]
[338344872,1726533042723,-173.32830778,0.00019397,2]
[338344873,1726533042733,-300.0,0.00019486,2]
[338344874,1726533042745,-300.0,0.00019486,2]
[338344875,1726533042754,-3621.93514138,0.00019487,2]
[338344876,1726533042764,-256.78538059,0.000195,5]
[338344885,1726533212411,-170.945712,0.00018774,2]
[338344899,1726533467034,-2000.0,0.00018,2]
[338344900,1726533473555,-2000.0,0.000185,2]
[338344901,1726533480637,-2000.0,0.00019,2]
[338344903,1726533599344,230.614289,0.00013699,2]
[338344909,1726533686272,2567.59,0.0002051,120]
[338344921,1726534044137,-1000.0,0.00019,2]
[338344922,1726534044160,-124.16796362,0.00019078,2]
[338344923,1726534049109,-38.67847138,0.00019078,2]
[338344924,1726534049131,-200.0,0.0001915,2]
[338344925,1726534049153,-1.6132588,0.00019178,2]
[338344928,1726534096130,219.083574,0.00013699,2]
[338345001,1726534243443,-158.1205282,0.00019178,2]
[338345002,1726534243453,-159.827103,0.00019178,2]
[338345003,1726534243463,-843.308088,0.00019178,2]
[338345004,1726534243472,-501.989442,0.00019217,2]
[338345005,1726534243493,-200.0,0.0001925,2]
[338345006,1726534243503,-300.0,0.00019499,2]
[338345007,1726534243512,-323.78010676,0.000195,5]
[338345008,1726534243522,-259.59473204,0.000195,10]
[338345009,1726534243542,-240.40526796,0.000195,10]
[338345010,1726534243552,-500.0,0.000195,10]
[338345011,1726534243562,-468.14518019,0.000195,10]
[338345028,1726534245955,-31.85481981,0.000195,10]
[338345029,1726534245964,-500.0,0.000195,10]
[338345030,1726534245973,-500.0,0.000195,10]
[338345031,1726534245983,-500.0,0.000195,10]
[338345032,1726534245993,-500.0,0.000195,10]
[338345033,1726534246002,-500.0,0.000195,10]
[338345034,1726534246011,-500.0,0.000195,10]
[338345035,1726534246021,-500.0,0.000195,10]
[338345036,1726534246030,-500.0,0.000195,10]
[338345037,1726534246039,-500.0,0.000195,10]
[338345038,1726534246049,-600.0,0.000195,10]
[338345039,1726534246058,-500.0,0.000195,10]
[338345040,1726534246068,-500.0,0.000195,10]
[338345041,1726534246078,-500.0,0.000195,10]
[338345042,1726534246089,-800.0,0.000195,10]
[338345043,1726534246098,-500.0,0.000195,10]
[338345044,1726534246108,-500.0,0.000195,10]
[338345045,1726534246118,-500.0,0.000195,10]
[338345046,1726534246127,-500.0,0.000195,10]
[338345047,1726534246136,-500.0,0.000195,10]
[338345048,1726534246145,-500.0,0.000195,10]
[338345049,1726534246155,-500.0,0.000195,10]
[338345050,1726534246165,-500.0,0.000195,10]
[338345051,1726534246174,-500.0,0.000195,10]
[338345052,1726534246183,-500.0,0.000195,10]
[338345053,1726534246193,-500.0,0.000195,10]
[338345054,1726534246203,-498.91193843,0.000195,10]
[338345055,1726534246247,-1.08806157,0.000195,10]
[338345056,1726534246256,-590.89916317,0.000195,10]
[338345060,1726534649204,208.129395,0.00013699,2]
[338345064,1726534861273,-467.43188567,0.00025,60]
[338345065,1726534861297,-618.08653385,0.00025,120]
[338345066,1726534861320,-1390.51378092,0.00025,120]
[338345067,1726534861344,-209.19341571,0.00025,120]
[338345068,1726534861368,-2319.83909687,0.00025,120]
[338345071,1726534874342,-1000.0,0.00027,120]
[338345072,1726534874367,-1906.93857183,0.00027,120]
[338345073,1726534874394,-500.0,0.00027397,120]
[338345074,1726534874419,-1328.0,0.00027397,120]
[338345075,1726534874445,-1029.65723614,0.000278,120]
[338345076,1726534874471,-1000.0,0.00028,120]
[338345077,1726534874494,-500.0,0.00028,120]
[338345078,1726534874518,-500.0,0.00028,120]
[338345079,1726534874543,-500.0,0.00028,120]
[338345080,1726534874567,-500.0,0.00028,120]
[338345081,1726534874590,-500.0,0.00028,120]
[338345082,1726534874613,-500.0,0.00028,120]
[338345083,1726534874637,-500.0,0.00028,120]
[338345084,1726534874660,-500.0,0.00028,120]
[338345085,1726534874684,-500.0,0.00028,120]
[338345086,1726534874715,-500.0,0.00028,120]
[338345087,1726534874741,-500.0,0.00028,120]
[338345088,1726534874766,-500.0,0.00028,120]
[338345089,1726534874790,-500.0,0.00028,120]
[338345090,1726534874815,-500.0,0.00028,120]
[338345091,1726534874840,-500.0,0.00028,120]
[338345092,1726534874865,-500.0,0.00028,120]
[338345093,1726534874892,-500.0,0.00028,120]
[338345094,1726534874917,-500.0,0.00028,120]
[338345095,1726534874943,-500.0,0.00028,120]
[338345096,1726534875174,-500.0,0.00028,120]
[338345097,1726534875200,-500.0,0.00028,120]
[338345098,1726534875223,-500.0,0.00028,120]
[338345099,1726534875247,-500.0,0.00028,120]
[338345100,1726534875271,-500.0,0.00028,120]
[338345101,1726534875295,-500.0,0.00028,120]
[338345102,1726534875320,-500.0,0.00028,120]
[338345103,1726534875343,-500.0,0.00028,120]
[338345104,1726534875367,-500.0,0.00028,120]
[338345105,1726534875390,-500.0,0.00028,120]
[338345106,1726534875413,-500.0,0.00028,120]
[338345107,1726534875437,-500.0,0.00028,120]
[338345108,1726534875462,-500.0,0.00028,120]
[338345109,1726534875486,-500.0,0.00028,120]
[338345110,1726534875509,-500.0,0.00028,120]
[338345111,1726534875533,-500.0,0.00028,120]
[338345112,1726534875560,-500.0,0.00028,120]
[338345113,1726534875584,-500.0,0.00028,120]
[338345114,1726534875607,-500.0,0.00028,120]
[338345115,1726534875631,-260.454,0.00028,120]
[338345116,1726534875656,-2142.33396491,0.00028,120]
[338345117,1726534875679,-1000.0,0.00028,120]
[338345136,1726535029536,2725.02,0.00028,120]
[338345168,1726535230156,-1260.56442183,0.00018905,2]
[338345169,1726535242107,-139.43639837,0.00018905,2]
[338345170,1726535242130,-22.52994589,0.00019088,2]
[338345171,1726535264843,208.106108,0.00013699,2]
[338345175,1726535405939,-3690.91376,0.00019088,2]
[338345238,1726535432792,-341.51595617,0.00019088,2]
[338345249,1726535438345,-408.37630869,0.00019088,2]
[338345250,1726535438355,-161.661356,0.00019178,2]
[338345251,1726535438365,-562.205392,0.00019178,2]
[338345252,1726535438375,-161.161121,0.00019178,2]
[338345253,1726535438384,-534.89289583,0.00019265,2]
[338345254,1726535438394,-0.77571418,0.00019397,2]
[338345261,1726535440206,-0.03833888,0.00019397,2]
[338345396,1726535528383,555.0,0.00028,120]
[338345397,1726535561063,555.0,0.00028,120]
[338345398,1726535576567,555.0,0.00028,120]
[338345402,1726535616132,487.0,0.00028,120]
[338345406,1726535769736,208.078321,0.00013699,2]
[338345407,1726535782184,337.6891318,0.00027,120]
[338345408,1726535902342,3927.58525346,0.000279,120]
[338345411,1726536311407,207.533048,0.00013699,2]
[338345412,1726536356478,500.0,0.00028,120]
[338345414,1726536376219,485.672437,0.00028,120]
[338345416,1726536430470,200.0,0.00026,60]
[338345417,1726536435112,-250.0,0.00018057,2]
[338345418,1726536435134,-396.0834677,0.00018294,2]
[338345419,1726536435155,-200.0,0.00018351,2]
[338345420,1726536435189,-621.73060044,0.00018351,2]
[338345421,1726536451207,-167.79942979,0.00018194,2]
[338345422,1726536451228,-56.23907477,0.00018351,2]
[338345431,1726536599760,500.0,0.00028,120]
[338345432,1726536600449,500.0,0.00028,120]
[338345433,1726536600656,500.0,0.00028,120]
[338345434,1726536601236,500.0,0.00028,120]
[338345435,1726536601279,500.0,0.00028,120]
[338345438,1726536601844,1016.91,0.00028,120]
[338345439,1726536603727,500.0,0.00028,120]
[338345440,1726536604802,1891.62,0.00028,120]
[338345441,1726536605277,500.0,0.00028,120]
[338345442,1726536608004,500.0,0.00028,120]
[338345443,1726536608904,656.34,0.00028,120]
[338345444,1726536609822,5328.68,0.00028,120]
[338345445,1726536609888,745.62,0.00028,120]
[338345446,1726536610747,500.0,0.00028,120]
[338345447,1726536611646,3944.86,0.00028,120]
[338345448,1726536611893,20530.88,0.00028,120]
[338345449,1726536611963,500.0,0.00028,120]
[338345450,1726536614280,500.0,0.00028,120]
[338345451,1726536615161,752.64,0.00028,120]
[338345452,1726536616050,4844.41,0.00028,120]
[338345453,1726536616321,4844.41,0.00028,120]
[338345454,1726536616622,4844.41,0.00028,120]
[338345455,1726536617180,500.0,0.00028,120]
[338345456,1726536617326,4844.41,0.00028,120]
[338345457,1726536617589,4844.41,0.00028,120]
[338345458,1726536618481,4844.41,0.00028,120]
[338345459,1726536618541,4844.41,0.00028,120]
[338345460,1726536618650,4844.41,0.00028,120]
[338345461,1726536618926,4844.41,0.00028,120]
[338345462,1726536619334,4844.41,0.00028,120]
[338345463,1726536619467,4844.41,0.00028,120]
[338345464,1726536619768,4844.41,0.00028,120]
[338345465,1726536620046,4844.41,0.00028,120]
[338345466,1726536620300,4844.41,0.00028,120]
[338345467,1726536620580,4844.41,0.00028,120]
[338345468,1726536620838,4844.41,0.00028,120]
[338345469,1726536621037,7099.81,0.00028,120]
[338345470,1726536621106,4844.41,0.00028,120]
[338345471,1726536621875,4844.41,0.00028,120]
[338345472,1726536621923,1216.99,0.00028,120]
[338345473,1726536621952,791.43,0.00028,120]
[338345474,1726536622160,4844.41,0.00028,120]
[338345475,1726536622427,4844.41,0.00028,120]
[338345476,1726536622736,4844.41,0.00028,120]
[338345477,1726536622785,10521.83,0.00028,120]
[338345478,1726536623077,4844.41,0.00028,120]
[338345479,1726536623334,4844.41,0.00028,120]
[338345480,1726536623590,4844.64940565,0.00028,120]
[338345481,1726536624034,512.84917799,0.00028,120]
[338345482,1726536624383,500.0,0.00028,120]
[338345483,1726536624907,500.0,0.00028,120]
[338345484,1726536625640,1598.01,0.00028,120]
[338345485,1726536626032,500.0,0.00028,120]
[338345486,1726536626611,500.0,0.00028,120]
[338345487,1726536627299,886.39,0.00028,120]
[338345488,1726536627759,3357.51,0.00028,120]
[338345489,1726536628307,500.0,0.00028,120]
[338345490,1726536629246,500.0,0.00028,120]
[338345491,1726536629349,570.43579835,0.00028,120]
[338345492,1726536629894,500.67074157,0.00028,120]
[338345493,1726536629958,1273.43,0.00028,120]
[338345494,1726536631735,500.0,0.00028,120]
[338345499,1726536632168,500.0,0.00028,120]
[338345522,1726536632424,500.0,0.00028,120]
[338345542,1726536635984,500.0,0.00028,120]
[338345543,1726536636440,640.27,0.00028,120]
[338345544,1726536636489,3361.05,0.00028,120]
[338345545,1726536637148,500.0,0.00028,120]
[338345546,1726536637261,500.0,0.00028,120]
[338345562,1726536638629,-3695.7238572,0.00018252,2]
[338345563,1726536638639,-1323.03094789,0.00018351,2]
[338345564,1726536638655,-167.79942978,0.000187,2]
[338345565,1726536638665,-415.4892359,0.000188,2]
[338345566,1726536638675,-306.0,0.000188,2]
[338345567,1726536638684,-306.0,0.000188,2]
[338345568,1726536638694,-153.0,0.000188,2]
[338345569,1726536638704,-153.0,0.000188,2]
[338345570,1726536638714,-167.79942978,0.00018872,2]
[338345571,1726536638724,-401231.518788,0.000189,2]
[338345572,1726536638734,-218.0,0.00018904,2]
[338345573,1726536638744,-300.0,0.00018904,2]
[338345574,1726536638754,-1120.0006562,0.00018905,2]
[338345575,1726536638764,-153.0,0.00018943,2]
[338345576,1726536638777,-239.3069737,0.00018979,2]
[338345577,1726536638788,-153.0,0.00018979,2]
[338345578,1726536638798,-153.0,0.00018979,2]
[338345579,1726536638808,-498.25893914,0.00018988,2]
[338345580,1726536638819,-153.0,0.00019,2]
[338345581,1726536638828,-153.0,0.00019,2]
[338345582,1726536638840,-153.0,0.00019,2]
[338345583,1726536638850,-153.0,0.00019,2]
[338345584,1726536638859,-208.5342696,0.00019,2]
[338345585,1726536638869,-153.0,0.00019,2]
[338345586,1726536638879,-154.4830002,0.00019,2]
[338345587,1726536638890,-167.79942978,0.00019044,2]
[338345588,1726536638900,-153.0,0.00019052,2]
[338345589,1726536638909,-153.0,0.000191,2]
[338345590,1726536638920,-153.5998726,0.000191,2]
[338345591,1726536638929,-374.803595,0.00019178,2]
[338345592,1726536638939,-159.827103,0.00019178,2]
[338345593,1726536638948,-167.79942978,0.00019216,2]
[338345594,1726536638958,-597.26,0.000193,2]
[338345595,1726536638968,-213.489918,0.00019342,2]
[338345596,1726536638977,-295.3382894,0.00019342,2]
[338345597,1726536638987,-160.1,0.00019369,2]
[338345598,1726536638997,-167.79942978,0.00019388,2]
[338345599,1726536639007,-161.36702976,0.0001939,2]
[338345600,1726536639016,-151.50476287,0.00019397,2]
[338345601,1726536639027,-159.88831366,0.00019397,2]
[338345602,1726536639038,-3460.25466318,0.00019399,2]
[338345603,1726536639048,-153.0,0.000194,2]
[338345604,1726536639057,-434.4005391,0.000194,2]
[338345605,1726536639067,-1120.0006562,0.00019405,2]
[338345606,1726536639077,-485.67016014,0.00019419,5]
[338345607,1726536639090,-2338.49394016,0.00019419,2]
[338345608,1726536639100,-500.0,0.00019473,2]
[338345609,1726536639109,-500.39725523,0.00019473,2]
[338345610,1726536639119,-500.0,0.00019477,2]
[338345611,1726536639130,-500.0,0.00019477,2]
[338345612,1726536639139,-500.0,0.00019477,2]
[338345613,1726536639149,-364.30632723,0.00019477,2]
[338345614,1726536639158,-364.96698086,0.00019477,2]
[338345615,1726536639168,-838.2844785,0.00019477,2]
[338345616,1726536639179,-500.0,0.00019477,2]
[338345617,1726536639188,-230.84511375,0.00019477,2]
[338345618,1726536639198,-363.10648644,0.00019477,2]
[338345619,1726536639208,-500.0,0.00019477,2]
[338345620,1726536639218,-838.2844785,0.00019477,2]
[338345621,1726536639227,-500.0,0.00019477,2]
[338345622,1726536639237,-838.2844785,0.00019477,2]
[338345623,1726536639247,-500.0,0.00019477,2]
[338345624,1726536639257,-838.2844785,0.00019477,2]
[338345625,1726536639266,-500.0,0.00019477,2]
[338345626,1726536639276,-838.2844785,0.00019477,2]
[338345627,1726536639286,-500.0,0.00019477,2]
[338345628,1726536639296,-838.2844785,0.00019477,2]
[338345629,1726536639306,-500.0,0.00019477,2]
[338345630,1726536639317,-838.2844785,0.00019477,2]
[338345631,1726536639327,-500.0,0.00019477,2]
[338345632,1726536639336,-838.2844785,0.00019477,2]
[338345633,1726536639346,-500.0,0.00019477,2]
[338345634,1726536639356,-838.2844785,0.00019477,2]
[338345635,1726536639366,-500.0,0.00019477,2]
[338345636,1726536639375,-838.2844785,0.00019477,2]
[338345637,1726536639385,-299.5467022,0.00019477,2]
[338345638,1726536639395,-838.2844785,0.00019477,2]
[338345639,1726536639405,-838.2844785,0.00019477,2]
[338345640,1726536639415,-500.0,0.00019477,2]
[338345641,1726536639425,-838.2844785,0.00019477,2]
[338345642,1726536639435,-500.0,0.00019477,2]
[338345643,1726536639445,-480.14202235,0.00019477,2]
[338345646,1726536640264,500.0,0.00028,120]
[338345650,1726536640767,-358.14245615,0.00019477,2]
[338345651,1726536640776,-838.2844785,0.00019477,2]
[338345652,1726536640786,-838.2844785,0.00019477,2]
[338345653,1726536640796,-838.2844785,0.00019477,2]
[338345654,1726536640805,-838.2844785,0.00019477,2]
[338345655,1726536640816,-838.2844785,0.00019477,2]
[338345656,1726536640826,-838.2844785,0.00019477,2]
[338345657,1726536640835,-838.2844785,0.00019477,2]
[338345658,1726536640845,-838.2844785,0.00019477,2]
[338345659,1726536640855,-838.2844785,0.00019477,2]
[338345660,1726536640864,-838.2844785,0.00019477,2]
[338345661,1726536640874,-838.2844785,0.00019477,2]
[338345662,1726536640883,-838.2844785,0.00019477,2]
[338345663,1726536640892,-838.2844785,0.00019477,2]
[338345664,1726536640902,-838.2844785,0.00019477,2]
[338345665,1726536640912,-838.2844785,0.00019477,2]
[338345666,1726536640922,-838.2844785,0.00019477,2]
[338345667,1726536640932,-838.2844785,0.00019477,2]
[338345668,1726536640941,-838.2844785,0.00019477,2]
[338345669,1726536640951,-838.2844785,0.00019477,2]
[338345670,1726536640960,-838.2844785,0.00019477,2]
[338345671,1726536640970,-838.2844785,0.00019477,2]
[338345672,1726536640980,-838.2844785,0.00019477,2]
[338345673,1726536640989,-838.2844785,0.00019477,2]
[338345674,1726536640999,-838.2844785,0.00019477,2]
[338345675,1726536641009,-838.2844785,0.00019477,2]
[338345676,1726536641018,-838.2844785,0.00019477,2]
[338345677,1726536641028,-838.2844785,0.00019477,2]
[338345678,1726536641038,-838.2844785,0.00019477,2]
[338345679,1726536641048,-838.2844785,0.00019477,2]
[338345680,1726536641057,-838.2844785,0.00019477,2]
[338345681,1726536641068,-838.2844785,0.00019477,2]
[338345682,1726536641077,-838.2844785,0.00019477,2]
[338345683,1726536641092,-838.2844785,0.00019477,2]
[338345684,1726536641103,-838.2844785,0.00019477,2]
[338345685,1726536641113,-88888.0,0.00019478,2]
[338345686,1726536641123,-500.0,0.00019488,2]
[338345687,1726536641132,-500.0,0.00019488,2]